bitfinex/quotes_SOLUSD_20250129
["timestamp","ask_amount","ask_price","bid_price","bid_amount"]
[1738161701869,33.23678924,227.6,227.53,3.4]
[1738161702040,33.20678924,227.58,227.5,33.20678924]
[1738161702342,33.20678924,227.56,227.5,33.20678924]
[1738161702556,33.20678924,227.56,227.49,312.0]
[1738161702932,33.20678924,227.56,227.5,4.3956]
[1738161704020,33.23678924,227.6,227.53,23.776884]
[1738161704221,0.03,227.6,227.54,33.20678924]
[1738161704445,0.03,227.6,227.58,33.20678924]
[1738161704657,0.03,227.6,227.59,23.776884]
[1738161704829,0.03,227.6,227.59,28.170684]
[1738161705323,33.20678924,227.68,227.59,39.406264]
[1738161705529,33.20678924,227.7,227.62,33.20678924]
[1738161706437,33.20678924,227.7,227.63,23.776884]
[1738161706633,33.20678924,227.72,227.64,33.20678924]
[1738161706947,33.20678924,227.74,227.67,4.3923]
[1738161707145,0.03,227.75,227.67,4.3923]
[1738161707146,53.20678924,227.73,227.67,4.3923]
[1738161707525,33.20678924,227.71,227.67,4.3923]
[1738161707721,33.20678924,227.69,227.65,4.3925]
[1738161707929,33.20678924,227.71,227.65,4.3925]
[1738161708760,33.20678924,227.7,227.65,4.3925]
[1738161709149,33.20678924,227.69,227.65,4.3925]
[1738161709339,33.20678924,227.66,227.58,33.20678924]
[1738161709537,33.20678924,227.64,227.59,4.3938]
[1738161709858,33.20678924,227.66,227.59,37.60058924]
[1738161710373,33.20678924,227.64,227.55,33.20678924]
[1738161710534,33.20678924,227.64,227.55,37.60138924]
[1738161710958,33.20678924,227.64,227.57,33.20678924]
[1738161711146,33.20678924,227.68,227.59,33.20678924]
[1738161711480,33.20678924,227.7,227.61,33.20678924]
[1738161712160,33.20678924,227.68,227.61,33.20678924]
[1738161712375,33.20678924,227.7,227.61,33.20678924]
[1738161712671,33.20678924,227.65,227.56,33.20678924]
[1738161712842,33.20678924,227.57,227.45,0.063]
[1738161713045,33.20678924,227.53,227.45,0.063]
[1738161713455,33.20678924,227.5,227.45,0.063]
[1738161713762,33.20678924,227.48,227.45,0.063]
[1738161713964,33.20678924,227.52,227.45,0.063]
[1738161714336,33.20678924,227.5,227.45,0.063]
[1738161714862,33.20678924,227.48,227.45,0.063]
[1738161715672,33.20678924,227.46,227.45,0.063]
[1738161716062,33.20678924,227.48,227.45,0.063]
[1738161717054,33.33227924,227.5,227.45,0.063]
[1738161717252,33.20678924,227.54,227.45,4.4593]
[1738161717457,33.20678924,227.5,227.45,0.063]
[1738161717682,33.20678924,227.47,227.45,0.063]
[1738161720466,82.5,227.46,227.45,0.063]
[1738161722253,0.12549,227.46,227.45,0.063]
[1738161722466,0.94115424,227.46,227.45,0.063]
[1738161722674,24.71803824,227.46,227.45,0.0001]
[1738161722976,24.278844,227.42,227.37,0.063]
[1738161723158,33.45776924,227.38,227.37,0.063]
[1738161723352,33.33227924,227.38,227.37,0.063]
[1738161724478,34.33726924,227.38,227.37,0.063]
[1738161724771,34.58824924,227.38,227.37,0.063]
[1738161725178,33.33227924,227.38,227.37,0.063]
[1738161725376,67.41856848,227.38,227.37,0.0001]
[1738161725578,67.41856848,227.38,227.3,0.063]
[1738161725579,20.25098,227.31,227.3,0.063]
[1738161725758,33.33227924,227.24,227.23,0.063]
[1738161726266,33.89696348,227.24,227.23,0.063]
[1738161726461,34.77706348,227.24,227.23,0.063]
[1738161727067,34.33786924,227.24,227.23,0.063]
[1738161727270,33.20678924,227.24,227.23,0.063]
[1738161727979,34.14794348,227.24,227.23,0.063]
[1738161728185,33.45776924,227.24,227.23,0.063]
[1738161728558,33.33227924,227.24,227.23,0.063]
[1738161728759,33.20678924,227.24,227.23,0.063]
[1738161729172,33.89696348,227.24,227.23,0.063]
[1738161729685,57.92482748,227.24,227.23,0.063]
[1738161730182,33.89696348,227.24,227.23,0.063]
[1738161731299,57.92482748,227.24,227.23,0.063]
[1738161732889,57.99044006,227.24,227.23,0.063]
[1738161733186,33.96257606,227.24,227.23,0.063]
[1738161733569,57.86495006,227.24,227.23,0.063]
[1738161734404,58.74505006,227.24,227.23,0.063]
[1738161734593,45.94715767,227.24,227.23,0.063]
[1738161735290,46.07264767,227.24,227.23,0.063]
[1738161736473,22.29576367,227.24,227.23,0.063]
[1738161737380,20.0,227.18,227.14,0.063]
[1738161737688,66.10237286,227.15,227.14,0.063]
[1738161737997,0.37647,227.11,227.01,4.405]
[1738161738292,20.47450943,227.1,227.05,4.4042]
[1738161738479,0.25098,227.12,227.02,4.4047]
[1738161738480,20.47450943,227.08,227.02,4.4047]
[1738161738802,20.47450943,227.08,227.03,4.4047]
[1738161739171,20.47450943,227.08,227.0,0.063]
[1738161739374,21.35520943,227.08,227.0,4.4681]
[1738161739781,20.72548943,227.08,227.02,4.4048]
[1738161740093,20.47450943,227.08,227.04,4.4043]
[1738161740482,20.47450943,227.08,227.0,0.063]
[1738161740683,20.72548943,227.08,227.01,4.4049]
[1738161740899,21.16468367,227.08,227.01,4.4049]
[1738161741505,21.16468367,227.08,227.0,0.063]
[1738161741694,20.47450943,227.1,227.07,4.4669]
[1738161741942,20.47450943,227.1,227.07,0.063]
[1738161742281,20.72548943,227.08,227.07,0.063]
[1738161743707,20.0,227.08,227.07,0.063]
[1738161743887,20.47450943,227.12,227.07,4.4669]
[1738161744084,0.25098,227.11,227.07,0.063]
[1738161744283,82.5,227.14,227.07,4.4668]
[1738161744675,20.47450943,227.18,227.07,15.4766]
[1738161744880,20.47450943,227.2,227.08,7.7572]
[1738161745312,20.47450943,227.2,227.09,23.776884]
[1738161745482,20.47450943,227.22,227.11,23.776884]
[1738161746506,82.5,227.23,227.14,23.776884]
[1738161747009,20.47450943,227.26,227.15,4.4023]
[1738161747190,40.47450943,227.28,227.15,4.4023]
[1738161747387,20.47450943,227.24,227.15,327.4082]
[1738161747581,20.47450943,227.24,227.15,316.4023]
[1738161747777,20.47450943,227.26,227.16,23.776884]
[1738161747996,20.47450943,227.3,227.15,15.4082]
[1738161748214,20.47450943,227.24,227.15,4.4023]
[1738161748707,20.47450943,227.24,227.16,23.776884]
[1738161748906,20.72548943,227.28,227.17,4.4019]
[1738161749081,20.47450943,227.28,227.18,23.776884]
[1738161749283,40.47450943,227.28,227.18,23.776884]
[1738161749690,20.47450943,227.3,227.18,23.776884]
[1738161749884,20.47450943,227.3,227.22,8.0321]
[1738161750208,20.47450943,227.28,227.22,8.0321]
[1738161751102,20.47450943,227.3,227.23,4.4008]
[1738161751787,82.5,227.31,227.23,4.4008]
[1738161752314,82.5,227.31,227.24,23.776884]
[1738161752517,0.03,227.28,227.24,23.776884]
[1738161752890,0.03,227.28,227.26,23.776884]
[1738161753395,0.03,227.28,227.25,4.4004]
[1738161754698,0.03,227.28,227.23,4.4008]
[1738161755709,0.03,227.28,227.24,23.776884]
[1738161756294,0.03,227.28,227.26,23.776884]
[1738161756798,0.03,227.28,227.23,15.4028]
[1738161757821,0.03,227.28,227.24,23.776884]
[1738161758117,0.03,227.28,227.26,23.776884]
[1738161758293,0.03,227.28,227.24,312.0]
[1738161758489,0.03,227.28,227.23,15.4028]
[1738161758898,0.03,227.28,227.24,23.776884]
[1738161759107,0.03,227.28,227.23,4.4008]
[1738161760106,20.50450943,227.28,227.22,1.6581]
[1738161760289,20.50450943,227.28,227.2,4.4012]
[1738161760489,20.47450943,227.26,227.17,4.4019]
[1738161760808,20.47450943,227.24,227.17,4.4019]
[1738161761110,21.35460943,227.24,227.17,4.4019]
[1738161761296,20.47450943,227.22,227.14,4.4025]
[1738161761504,20.47450943,227.2,227.12,4.4028]
[1738161762589,82.5,227.23,227.12,4.4028]
[1738161763391,82.5,227.23,227.14,30.0]
[1738161763787,82.5,227.23,227.12,15.4101]
[1738161764003,20.47450943,227.21,227.12,4.4028]
[1738161764211,20.47450943,227.21,227.12,7.8428]
[1738161764600,20.47450943,227.21,227.14,4.4025]
[1738161764798,102.97450943,227.23,227.14,4.4025]
[1738161765028,82.5,227.23,227.14,4.4025]
[1738161765530,102.97450943,227.23,227.14,4.4025]
[1738161765827,0.25098,227.22,227.14,4.4025]
[1738161766014,20.47450943,227.21,227.14,4.4025]
[1738161766404,82.5,227.23,227.14,4.4025]
[1738161766731,82.5,227.23,227.15,30.0]
[1738161767028,102.97450943,227.23,227.14,4.4025]
[1738161767405,0.12549,227.22,227.14,4.4025]
[1738161767613,0.12549,227.2,227.13,0.063]
[1738161767804,0.12549,227.2,227.13,4.4657]
[1738161770932,82.5,227.22,227.13,4.4657]
[1738161771505,82.5,227.22,227.14,30.0]
[1738161771698,102.97450943,227.27,227.15,23.776884]
[1738161772700,82.5,227.27,227.18,23.776884]
[1738161772912,82.5,227.27,227.19,15.4056]
[1738161773602,82.5,227.27,227.19,4.4016]
[1738161774518,82.5,227.27,227.19,327.4056]
[1738161774717,82.5,227.27,227.22,23.776884]
[1738161774925,0.03,227.28,227.23,4.4008]
[1738161775099,0.03,227.28,227.24,3.4]
[1738161777223,0.03,227.28,227.25,4.4004]
[1738161778921,0.03,227.28,227.26,23.776884]
[1738161779131,82.5,227.37,227.27,58.176884]
[1738161779340,82.5,227.37,227.28,23.776884]
[1738161779625,20.47450943,227.36,227.27,15.4001]
[1738161779826,82.5,227.37,227.27,45.4001]
[1738161780038,20.47450943,227.41,227.3,30.0]
[1738161780213,102.97450943,227.44,227.31,23.776884]
[1738161780417,0.03,227.45,227.38,20.0]
[1738161780607,0.03,227.45,227.4,20.0]
[1738161780933,0.03,227.45,227.41,23.776884]
[1738161781126,0.03,227.45,227.42,4.3971]
[1738161781429,0.03,227.45,227.43,53.776884]
[1738161781602,0.03,227.51,227.46,30.0]
[1738161781806,0.03,227.51,227.47,23.776884]
[1738161782109,0.03,227.51,227.49,30.0]
[1738161782450,0.03,227.51,227.47,30.268984]
[1738161782614,0.03,227.51,227.42,45.3899]
[1738161783015,0.03,227.51,227.43,23.776884]
[1738161783214,0.03,227.51,227.44,4.3967]
[1738161783426,0.03,227.51,227.45,20.0]
[1738161783741,0.03,227.51,227.44,4.3967]
[1738161784950,0.03,227.51,227.44,316.3967]
[1738161785633,0.03,227.51,227.45,23.776884]
[1738161785824,0.03,227.51,227.46,34.3963]
[1738161786131,0.03,227.51,227.47,23.776884]
[1738161787429,0.03,227.51,227.48,3.38]
[1738161787931,0.03,227.51,227.48,4.3958]
[1738161789126,0.03,227.51,227.5,23.776884]
[1738161790130,0.03,227.51,227.5,28.172484]
[1738161791839,0.03,227.51,227.5,340.172484]
[1738161795057,0.0001,227.51,227.5,341.172484]
[1738161795341,0.0001,227.51,227.5,342.771784]
[1738161796235,0.0001,227.51,227.5,30.771784]
[1738161796434,20.47450943,227.69,227.56,30.0]
[1738161796621,20.47450943,227.7,227.57,23.776884]
[1738161796827,103.00450943,227.71,227.6,30.0]
[1738161797032,103.00450943,227.71,227.61,3.34]
[1738161797229,103.00450943,227.71,227.62,4.3932]
[1738161797855,82.53,227.71,227.62,4.3932]
[1738161798017,82.53,227.71,227.64,30.0]
[1738161798222,0.03,227.71,227.65,23.776884]
[1738161799144,0.03,227.71,227.66,4.3925]
[1738161799922,0.03,227.71,227.63,4.393]
[1738161800120,0.03,227.71,227.65,3.34]
[1738161800536,0.37647,227.7,227.65,3.34]
[1738161800742,20.47450943,227.7,227.65,3.34]
[1738161800967,0.03,227.71,227.65,3.34]
[1738161801527,0.03,227.71,227.66,4.3925]
[1738161801972,0.03,227.71,227.61,4.3934]
[1738161802147,20.47450943,227.7,227.62,3.34]
[1738161802445,20.50450943,227.71,227.62,3.34]
[1738161803357,20.50450943,227.71,227.63,4.393]
[1738161803670,20.47450943,227.67,227.56,30.0]
[1738161803832,20.47450943,227.67,227.55,4.3946]
[1738161804031,0.03,227.68,227.55,4.3946]
[1738161804032,0.03,227.68,227.61,23.776884]
[1738161804332,0.03,227.68,227.63,30.0]
[1738161804526,0.03,227.68,227.64,23.776884]
[1738161804730,0.03,227.71,227.64,23.776884]
[1738161804731,0.03,227.71,227.7,43.776884]
[1738161804930,0.03,227.71,227.7,47.116884]
[1738161805252,0.0001,227.71,227.7,51.634074]
[1738161806355,0.0001,227.71,227.7,51.508584]
[1738161806749,0.0001,227.71,227.7,363.508584]
[1738161807545,0.0001,227.71,227.7,51.634074]
[1738161810472,0.0001,227.71,227.7,363.634074]
[1738161811067,0.0001,227.71,227.7,364.010544]
[1738161811274,0.0001,227.71,227.7,365.010544]
[1738161811459,0.0001,227.71,227.7,364.010544]
[1738161812653,0.0001,227.71,227.7,363.634074]
[1738161813355,0.0001,227.71,227.7,4.3917]
[1738161813558,0.0001,227.71,227.7,7.6917]
[1738161813859,0.0001,227.71,227.7,31.468584]
[1738161814038,0.0001,227.71,227.7,4.3917]
[1738161814238,0.0001,227.71,227.67,4.3923]
[1738161814433,0.0001,227.71,227.64,4.3929]
[1738161814744,0.0001,227.71,227.63,10.9824]
[1738161814745,20.47450943,227.66,227.58,4.394]
[1738161815337,20.47450943,227.68,227.58,4.394]
[1738161816275,0.37647,227.67,227.58,4.394]
[1738161816443,0.37647,227.63,227.55,3.3]
[1738161816637,102.97450943,227.66,227.56,30.0]
[1738161816865,20.47460943,227.71,227.59,30.0]
[1738161817184,0.0001,227.71,227.59,30.0]
[1738161817368,0.37657,227.71,227.6,23.776884]
[1738161817545,0.0001,227.71,227.61,4.3934]
[1738161817749,0.0001,227.71,227.62,53.776884]
[1738161817961,0.0001,227.71,227.65,30.0]
[1738161818545,0.0001,227.71,227.62,53.776884]
[1738161818949,0.0001,227.71,227.7,20.0]
[1738161819177,0.0001,227.71,227.7,47.076884]
[1738161819343,0.0001,227.71,227.68,30.0]
[1738161819344,0.0001,227.71,227.64,30.0]
[1738161819552,0.0001,227.71,227.65,7.7127]
[1738161820051,0.0001,227.71,227.68,30.0]
[1738161820257,0.0001,227.71,227.69,23.776884]
[1738161821673,0.0001,227.71,227.7,4.3917]
[1738161822971,0.0001,227.71,227.69,316.3918]
[1738161823559,0.0001,227.71,227.69,346.3918]
[1738161824373,0.0001,227.71,227.69,34.3918]
[1738161824850,0.0001,227.71,227.6,30.0]
[1738161825052,0.0001,227.71,227.59,0.063]
[1738161825053,20.47450943,227.67,227.59,0.063]
[1738161825252,20.47450943,227.67,227.6,3.32]
[1738161825465,20.47450943,227.69,227.6,3.32]
[1738161825674,20.47450943,227.69,227.6,33.32]
[1738161825868,0.0001,227.71,227.61,23.776884]
[1738161826169,0.0001,227.71,227.64,23.776884]
[1738161826373,0.0001,227.71,227.67,30.0]
[1738161826751,0.0001,227.71,227.68,23.776884]
[1738161827068,0.0001,227.71,227.7,53.776884]
[1738161827388,0.0001,227.71,227.7,365.776884]
[1738161828461,0.0001,227.71,227.7,365.902374]
[1738161828659,0.0001,227.71,227.7,54.153354]
[1738161828860,0.0001,227.71,227.7,55.153354]
[1738161829067,0.0001,227.71,227.7,53.776884]
[1738161829865,0.0001,227.71,227.7,54.153354]
[1738161830973,0.0001,227.71,227.7,55.153354]
[1738161831288,0.0001,227.71,227.7,54.153354]
[1738161831772,0.0001,227.71,227.7,349.7117]
[1738161831960,0.0001,227.71,227.7,373.488584]
[1738161832155,0.0001,227.71,227.7,343.488584]
[1738161832355,0.0001,227.71,227.7,349.7117]
[1738161832569,0.0001,227.71,227.7,319.7117]
[1738161832775,0.0001,227.71,227.7,7.7117]
[1738161832979,0.0001,227.71,227.7,61.488584]
[1738161833183,0.0001,227.71,227.7,31.488584]
[1738161833358,0.0001,227.71,227.7,7.7117]
[1738161834165,0.0001,227.71,227.7,27.7117]
[1738161834779,0.0001,227.71,227.7,81.488584]
[1738161835572,0.0001,227.71,227.7,81.551584]
[1738161835789,0.0001,227.71,227.7,393.551584]
[1738161836265,0.0001,227.71,227.7,363.551584]
[1738161836459,0.0001,227.71,227.7,51.551584]
[1738161836781,0.0001,227.71,227.7,0.063]
[1738161837679,0.0001,227.71,227.7,4.4547]
[1738161840457,0.0001,227.71,227.7,0.063]
[1738161841283,0.0001,227.71,227.7,4.4547]
[1738161843494,0.0001,227.71,227.7,28.231584]
[1738161843670,0.0001,227.71,227.7,340.357074]
[1738161843873,0.0001,227.74,227.73,50.0]
[1738161844072,0.0001,227.74,227.73,73.776884]
[1738161844787,0.7123,227.79,227.78,23.776884]
[1738161845306,0.7123,227.79,227.74,30.0]
[1738161845807,0.7123,227.79,227.78,73.776884]
[1738161846974,82.5,227.85,227.81,30.0]
[1738161847201,82.5,227.85,227.82,3.28]
[1738161847991,82.5,227.85,227.83,4.3892]
[1738161848198,0.03,227.86,227.83,4.3892]
[1738161849078,0.03,227.85,227.84,20.0]
[1738161849376,0.03,227.85,227.84,43.776884]
[1738161849577,0.063,227.9,227.88,50.0]
[1738161849769,0.063,227.9,227.89,30.0]
[1738161849970,0.063,227.9,227.89,34.388]
[1738161850210,0.063,227.9,227.89,58.164884]
[1738161850709,0.03,227.91,227.9,23.776884]
[1738161851589,0.03,227.91,227.9,3.28]
[1738161852098,21.50749943,227.91,227.9,3.28]
[1738161852274,0.37647,227.9,227.8,4.3898]
[1738161852479,0.12549,227.88,227.8,7.6898]
[1738161852707,0.37647,227.88,227.8,7.6898]
[1738161853075,0.37647,227.88,227.76,4.3905]
[1738161853076,0.12549,227.86,227.76,4.3905]
[1738161853284,0.12549,227.86,227.76,7.6905]
[1738161853596,0.37647,227.86,227.76,7.6905]
[1738161855282,20.47450943,227.89,227.76,7.6905]
[1738161855590,20.47450943,227.89,227.77,23.776884]
[1738161855787,82.5,227.9,227.77,23.776884]
[1738161856096,82.5,227.9,227.8,30.0]
[1738161856671,82.5,227.9,227.8,20.0]
[1738161857507,82.5,227.9,227.81,4.3896]
[1738161858289,82.5,227.9,227.81,316.3896]
[1738161858881,82.5,227.9,227.83,30.0]
[1738161859084,82.5,227.9,227.81,15.3636]
[1738161860901,82.5,227.9,227.84,23.776884]
[1738161861091,0.03,227.91,227.87,23.776884]
[1738161861585,0.03,227.91,227.86,50.0]
[1738161862021,0.03,227.91,227.87,335.776884]
[1738161862203,0.03,227.9,227.87,335.776884]
[1738161862403,0.03,227.91,227.89,53.776884]
[1738161862589,0.0001,227.91,227.9,27.036884]
[1738161863109,0.0001,227.91,227.9,31.424684]
[1738161863288,0.0001,227.91,227.9,31.550174]
[1738161863601,0.0001,227.96,227.93,73.776884]
[1738161864179,0.0001,227.96,227.94,23.776884]
[1738161865598,0.0001,227.96,227.95,316.3869]
[1738161866383,0.0001,227.96,227.95,24.3869]
[1738161867987,0.0001,227.96,227.95,48.163784]
[1738161870494,0.0001,227.96,227.95,360.540254]
[1738161870891,0.0001,227.96,227.95,360.163784]
[1738161871302,0.0001,227.96,227.95,4.3869]
[1738161872217,0.0001,227.96,227.93,24.3871]
[1738161872394,0.0001,227.96,227.94,3.26]
[1738161873007,0.0001,227.96,227.9,30.0]
[1738161873207,20.47450943,227.95,227.9,3.24]
[1738161873411,20.47450943,227.92,227.85,3.26]
[1738161873817,20.47450943,227.93,227.85,3.26]
[1738161874219,20.59999943,227.92,227.85,7.6486]
[1738161874520,20.47450943,227.91,227.85,3.26]
[1738161874719,0.12549,227.92,227.85,7.6488]
[1738161874902,0.0001,227.96,227.86,23.776884]
[1738161875099,0.0001,227.96,227.9,0.063]
[1738161875300,0.03,227.94,227.9,0.063]
[1738161876223,0.03,227.94,227.91,30.0]
[1738161876519,0.03,227.94,227.92,4.3875]
[1738161877620,0.03,227.94,227.92,316.3875]
[1738161878820,0.03,227.94,227.91,4.3876]
[1738161879317,0.03,227.94,227.93,53.776884]
[1738161879526,0.0001,227.96,227.94,23.776884]
[1738161879722,0.0001,227.96,227.95,0.12549]
[1738161880824,0.0001,227.96,227.95,28.289274]
[1738161881011,0.0001,227.96,227.95,28.163784]
[1738161881803,0.0001,227.96,227.95,340.163784]
[1738161882319,0.0001,227.96,227.95,316.3869]
[1738161882627,0.0001,227.96,227.95,7.6469]
[1738161884820,0.0001,227.96,227.9,0.063]
[1738161884821,1.6024,227.96,227.9,0.063]
[1738161885045,102.97450943,227.95,227.9,0.063]
[1738161885221,0.12549,227.92,227.9,0.063]
[1738161887003,0.37647,227.92,227.9,0.063]
[1738161887222,102.97450943,227.91,227.9,0.063]
[1738161887808,103.35097943,227.91,227.9,0.063]
[1738161888831,127.25335343,227.91,227.9,0.063]
[1738161889032,20.59999943,227.82,227.81,0.063]
[1738161889251,20.85097943,227.82,227.81,0.063]
[1738161889460,20.47450943,227.82,227.81,0.063]
[1738161889764,6.3294,227.83,227.81,0.063]
[1738161890133,20.85097943,227.82,227.81,0.063]
[1738161890851,6.3294,227.83,227.81,0.063]
[1738161891630,0.12549,227.85,227.81,0.063]
[1738161891828,82.5,227.86,227.81,4.4525]
[1738161892732,0.12549,227.85,227.81,0.063]
[1738161892933,20.85097943,227.85,227.81,0.063]
[1738161893132,20.59999943,227.85,227.81,0.063]
[1738161894165,20.12549,227.82,227.81,0.063]
[1738161894474,1.50196,227.82,227.81,0.063]
[1738161894767,0.50196,227.82,227.81,0.063]
[1738161895130,0.12549,227.82,227.81,0.063]
[1738161895335,20.97646943,227.82,227.81,0.063]
[1738161895970,21.85426943,227.82,227.81,0.063]
[1738161897674,67.88245252,227.82,227.81,0.063]
[1738161897840,22.74266426,227.82,227.81,0.063]
[1738161898974,20.86486426,227.82,227.81,0.063]
[1738161899783,21.74266426,227.82,227.81,0.063]
[1738161900245,22.1818585,227.82,227.81,0.063]
[1738161900450,21.74266426,227.82,227.81,0.063]
[1738161900755,20.36290426,227.86,227.81,0.063]
[1738161901075,0.50196,227.82,227.81,0.063]
[1738161901244,66.44384676,227.82,227.81,0.063]
[1738161901445,0.50196,227.76,227.7,0.063]
[1738161901673,20.48839426,227.71,227.7,0.063]
[1738161901977,47.55686852,227.71,227.7,0.063]
[1738161902144,73.65124676,227.71,227.7,0.063]
[1738161902590,54.7902425,227.71,227.7,0.063]
[1738161902948,75.15314676,227.71,227.7,0.063]
[1738161903662,54.7902425,227.71,227.7,0.063]
[1738161903874,75.15314676,227.71,227.7,0.063]
[1738161904176,75.15314676,227.71,227.67,0.063]
[1738161904177,67.52014826,227.68,227.67,0.063]
[1738161904356,67.9593425,227.68,227.67,0.063]
[1738161904964,66.9593425,227.68,227.67,0.063]
[1738161905152,42.1824585,227.68,227.67,0.063]
[1738161905355,41.74326426,227.68,227.67,0.063]
[1738161905775,40.86486426,227.68,227.67,0.063]
[1738161906283,41.86486426,227.68,227.67,0.063]
[1738161906456,66.0809425,227.68,227.67,0.063]
[1738161906784,67.0809425,227.68,227.67,0.063]
[1738161907350,1.50196,227.6,227.59,0.063]
[1738161907553,21.50196,227.56,227.51,0.063]
[1738161907873,20.86486426,227.52,227.51,0.063]
[1738161908075,21.3040585,227.52,227.51,0.063]
[1738161908368,45.9599425,227.52,227.51,0.063]
[1738161908745,21.3040585,227.52,227.51,0.063]
[1738161908951,20.73937426,227.52,227.51,0.063]
[1738161909146,0.12549,227.52,227.51,0.063]
[1738161909785,20.48839426,227.52,227.51,0.063]
[1738161910074,20.36290426,227.6,227.51,24.82110426]
[1738161910270,20.36290426,227.58,227.53,4.3948]
[1738161910576,0.12549,227.52,227.51,0.063]
[1738161910782,20.86486426,227.52,227.51,0.063]
[1738161911277,22.50196,227.48,227.47,0.063]
[1738161911491,87.44384676,227.48,227.47,0.063]
[1738161911659,87.00465252,227.48,227.47,0.063]
[1738161912069,86.00465252,227.48,227.47,0.063]
[1738161912260,87.88375252,227.48,227.44,0.063]
[1738161912461,24.71803824,227.47,227.44,0.063]
[1738161913251,46.278844,227.45,227.44,0.063]
[1738161913456,0.37647,227.39,227.31,52.16]
[1738161913669,20.48839426,227.39,227.31,72.52290426]
[1738161913864,20.36290426,227.39,227.31,72.52290426]
[1738161914074,0.37647,227.38,227.31,72.52290426]
[1738161914272,0.25098,227.32,227.31,52.16]
[1738161914474,20.36290426,227.35,227.31,52.16]
[1738161914782,0.12549,227.34,227.31,52.16]
[1738161915156,0.25098,227.34,227.31,47.16]
[1738161915356,0.25098,227.32,227.31,47.16]
[1738161915553,0.25098,227.3,227.24,4.4005]
[1738161915784,0.12549,227.28,227.22,4.4009]
[1738161916154,102.86290426,227.37,227.27,20.36290426]
[1738161916351,102.86290426,227.37,227.23,53.776884]
[1738161916352,102.86290426,227.37,227.3,20.36290426]
[1738161916578,102.86290426,227.37,227.28,20.36290426]
[1738161916767,0.50196,227.36,227.28,20.36290426]
[1738161916965,82.5,227.37,227.32,20.36290426]
[1738161918272,82.5,227.37,227.32,24.76180426]
[1738161918474,20.61388426,227.36,227.28,20.36290426]
[1738161918788,0.12549,227.34,227.27,20.36290426]
[1738161919086,82.5,227.37,227.3,20.36290426]
[1738161920083,20.73937426,227.36,227.28,20.36290426]
[1738161920281,0.12549,227.34,227.29,4.3995]
[1738161920676,0.12549,227.35,227.29,24.76240426]
[1738161920999,82.5,227.36,227.3,20.36290426]
[1738161921176,20.36290426,227.32,227.27,4.3999]
[1738161921375,20.61388426,227.31,227.25,4.4003]
[1738161921574,20.36290426,227.3,227.23,4.4006]
[1738161921769,0.25098,227.29,227.23,4.4006]
[1738161921975,0.25098,227.29,227.21,4.464]
[1738161921976,20.36290426,227.28,227.21,4.464]
[1738161922495,0.25098,227.27,227.21,4.464]
[1738161922867,20.36290426,227.29,227.21,24.82690426]
[1738161923062,102.86290426,227.3,227.22,20.36290426]
[1738161923366,0.12549,227.29,227.23,20.36290426]
[1738161923567,82.5,227.3,227.27,20.36290426]
[1738161923765,102.86290426,227.37,227.29,20.36290426]
[1738161924172,0.25098,227.3,227.24,20.36290426]
[1738161924503,0.12549,227.27,227.21,4.464]
[1738161924800,20.36290426,227.28,227.21,4.464]
[1738161924969,0.12549,227.28,227.21,24.82690426]
[1738161925171,20.48839426,227.28,227.21,4.464]